[Event "BRA vs ARG Blitz 2022"]
[Site "Catas Altas"]
[Date "2022.07.09"]
[Round "3.2"]
[White "Languidey, Simon Alejandro"]
[Black "Diamant, Andre"]
[Result "0-1"]
[ECO "B24"]
[WhiteElo "2424"]
[BlackElo "2538"]
[Annotator "TA"]
[PlyCount "120"]
[EventDate "2022.06.29"]
[EventType "schev"]
[EventCountry "BRA"]
[SourceTitle "playchess.com"]
[Source "ChessBase"]
[SourceQuality "1"]
[WhiteTeam "Argentina"]
[BlackTeam "Brazil"]
[WhiteTeamCountry "ARG"]
[BlackTeamCountry "BRA"]
[TimeControl "180+2"]

{[%evp 9,120,4,40,41,49,36,73,56,107,66,72,63,95,95,77,23,58,59,72,51,108,88,102,104,103,41,104,107,107,13,20,28,8,9,241,252,295,272,573,360,384,379,507,97,389,388,407,358,459,440,446,460,439,357,357,357,514,356,468,412,406,350,348,349,349,299,285,314,555,555,529,420,486,431,451,434,460,441,450,133,132,16,385,0,0,0,0,-406,-406,-399,-393,-352,-262,-262,-262,-509,-421,-919,-865,-841,-588,-582,-577,-993,-814,-777,-695,-29965,-29967,-5105,-654,-29992,-29993]} 1. e4 {[%emt 0:00:02]} c5 {[%emt 0:00:00]} 2. Nc3 {[%emt 0:00:01]} a6 {[%emt 0:00:01]} 3. g3 {[%emt 0:00:02]} e6 {[%emt 0:00:02]} 4. Bg2 {[%emt 0:00:01]} Nc6 {[%emt 0:00:02]} 5. d3 {[%emt 0:00:04]} Nge7 {[%emt 0:00:11]} 6. Be3 {[%emt 0:00:08] B24: Closed Sicilian: 3 g3 sidelines.} b6 {[%emt 0:00:16]} 7. Nge2 {[%emt 0:00:08]} g6 {[%emt 0:00:11] [#]} 8. Qd2 $146 {[%emt 0:00:03] White is better.} ({Predecessor:} 8. d4 cxd4 9. Nxd4 Bg7 10. O-O O-O 11. f4 Nxd4 12. Bxd4 Bxd4+ 13. Qxd4 Nc6 14. Qd6 {1-0 (28) Meisser,W (1968)-Eigemann,J (1904) Nordrheinwestfalen 2015}) 8... h6 {[%emt 0:00:11]} ({Black should play} 8... Bb7 $14) 9. O-O {[%emt 0:00:49]} Bg7 {[%emt 0:00:01]} 10. d4 {[%emt 0:00:08]} cxd4 {[%emt 0:00:15]} 11. Nxd4 {[%emt 0:00:03]} Ne5 {[%emt 0:00:01]} 12. b3 {[%emt 0:00:08] Prevents Nc4.} (12. Qe2 $16) 12... Bb7 {[%emt 0:00:44]} 13. h3 {[%emt 0:00:05]} Rc8 {[%emt 0:00:10]} 14. Rad1 {[%emt 0:00:22]} O-O {[%emt 0:00:18]} (14... f5 $1 $14) 15. Nce2 {[%emt 0:00:15]} Kh7 {[%emt 0:00:10]} 16. f4 $36 {[%emt 0:00:05][%mdl 2048] White is on the roll.} N5c6 {[%emt 0:00:02]} 17. e5 {[%emt 0:00:16]} (17. c4 $16) 17... d6 {[%emt 0:00:30]} (17... Qc7 $14) 18. Nxc6 $16 {[%emt 0:00:08]} Bxc6 {[%emt 0:00:03]} 19. exd6 {[%emt 0:00:11]} (19. Qxd6 $16 Bxg2 20. Qxd8 (20. Kxg2 Qxd6 21. Rxd6 Nf5 $11) 20... Rfxd8 21. Rxd8 Bxf1 22. Rxc8 Bxe2 23. Rd8) 19... Nf5 $1 $11 {[%emt 0:00:01]} 20. Bf2 {[%emt 0:00:06] [#] Black must now prevent d7.} Bxg2 $1 {[%emt 0:00:03]} 21. Kxg2 {[%emt 0:00:02] And now g4 would win.} Qd7 $2 {[%emt 0:00:03]} (21... Rc6 $1 $11) 22. g4 $18 {[%emt 0:00:08]} Qb7+ {[%emt 0:00:09]} 23. Kh2 {[%emt 0:00:15]} Qe4 {[%emt 0:00:10]} (23... Nxd6 {is more resistant.} 24. Qxd6 Rxc2) 24. c4 {[%emt 0:00:13][%cal Bc2c4,Bc4c5][%mdl 32]} Nxd6 {[%emt 0:00:03] [#]} 25. Ng3 $1 {[%emt 0:00:01]} Qf3 {[%emt 0:00:08]} 26. Be1 $2 {[%emt 0:00:00]} (26. Qxd6 $18 {is the precise move to win.} Rfd8 27. Qxd8 Rxd8 28. Rxd8) 26... Qb7 $2 {[%emt 0:00:04][%mdl 8192]} 27. Qxd6 {[%emt 0:00:02]} b5 {[%emt 0:00:01]} 28. c5 {[%emt 0:00:02]} Rfd8 {[%emt 0:00:04]} 29. Qxd8 {[%emt 0:00:02]} Rxd8 {[%emt 0:00:01]} 30. Rxd8 {[%emt 0:00:01]} Qc7 {[%emt 0:00:00]} 31. Rd2 {[%emt 0:00:05]} Qxc5 {[%emt 0:00:02]} 32. Bf2 {[%emt 0:00:05]} Qb4 {[%emt 0:00:00]} (32... Qc6 $142 33. Re2 b4) 33. Be3 {[%emt 0:00:01]} a5 {[%emt 0:00:03]} 34. Kg2 {[%emt 0:00:03]} a4 {[%emt 0:00:02]} 35. bxa4 bxa4 {[%emt 0:00:00]} 36. Rff2 {[%emt 0:00:03]} a3 {[%emt 0:00:02]} 37. f5 {[%emt 0:00:02]} exf5 {[%emt 0:00:02]} 38. gxf5 {[%emt 0:00:01]} Be5 $2 {[%emt 0:00:01]} (38... g5 39. f6 Qb7+ 40. Kg1 Qc7) 39. fxg6+ {[%emt 0:00:01]} Kxg6 {[%emt 0:00:01]} 40. Rde2 {[%emt 0:00:04]} Qb7+ {[%emt 0:00:01]} 41. Kh2 {[%emt 0:00:01]} Qc7 {[%emt 0:00:02]} 42. Rf3 {[%emt 0:00:02]} Qc6 {[%emt 0:00:02]} 43. Ref2 {[%emt 0:00:01]} f6 {[%emt 0:00:03]} 44. Bf4 $2 {[%emt 0:00:03]} (44. Kg1 $18 {and White stays clearly on top.}) 44... Bd4 $16 {[%emt 0:00:00]} 45. Rf1 {[%emt 0:00:02]} ({Less strong is} 45. Be3 Be5 46. Rf5 Qc4 $18) ({Better is} 45. Kg2 $16 {Threatens to win with Rd2.} Bxf2 46. Kxf2) 45... h5 $2 {[%emt 0:00:02][%mdl 8192]} (45... Qc2+ $11 {and Black stays safe.} 46. Kh1 Qxa2) 46. h4 $2 {[%emt 0:00:04]} (46. Ne2 $18 Bb2 47. R1f2) 46... Qc2+ $11 {[%emt 0:00:02]} 47. Kh3 {[%emt 0:00:02] Strongly threatening Bd6.} Qxa2 {[%emt 0:00:03]} 48. Bc1 $2 {[%emt 0:00:04][%mdl 8192]} (48. Re1 $11 {and White has nothing to worry.}) 48... Qe6+ $19 {[%emt 0:00:02]} 49. Kg2 {[%emt 0:00:01]} a2 {[%emt 0:00:01] Dancing on a razor blade.} 50. Bf4 {[%emt 0:00:03]} a1=R {[%emt 0:00:03] Prevents Ra3. Active counter play!} 51. Rxa1 Bxa1 {[%emt 0:00:01]} 52. Re3 $2 {[%emt 0:00:03]} (52. Nh1) 52... Qd5+ {[%emt 0:00:01]} 53. Kh2 {[%emt 0:00:02]} (53. Rf3 $142) 53... Bd4 {[%emt 0:00:02]} 54. Re2 {[%emt 0:00:01]} Qc4 {[%emt 0:00:02]} 55. Rg2 {[%emt 0:00:01]} Kf7 {[%emt 0:00:04] ...Be5 is the strong threat.} 56. Nxh5 {[%emt 0:00:03]} Bc5 {[%emt 0:00:03]} 57. Rg7+ {[%emt 0:00:02]} Ke6 {[%emt 0:00:02] ( -> ...Qe2+)} 58. Rg4 {[%emt 0:00:02]} Qe2+ {[%emt 0:00:01]} 59. Kh3 {[%emt 0:00:01]} Qf3+ {[%emt 0:00:03]} (59... Qf1+ $142 60. Kh2 Qf3 61. Ng7+ Kd5) 60. Kh2 Qxg4 {Weighted Error Value: White=1.10/Black=0.76} 0-1

[Event "BRA vs ARG Blitz 2022"]
[Site "Catas Altas"]
[Date "2022.07.09"]
[Round "4.1"]
[White "Mareco, Sandro"]
[Black "Supi, Luis Paulo"]
[Result "1-0"]
[ECO "E11"]
[WhiteElo "2657"]
[BlackElo "2603"]
[Annotator "TA"]
[PlyCount "131"]
[EventDate "2022.06.29"]
[EventType "schev"]
[EventCountry "BRA"]
[SourceTitle "playchess.com"]
[Source "ChessBase"]
[SourceQuality "1"]
[WhiteTeam "Argentina"]
[BlackTeam "Brazil"]
[WhiteTeamCountry "ARG"]
[BlackTeamCountry "BRA"]
[TimeControl "180+2"]

{[%evp 12,131,16,20,30,27,29,6,13,10,36,14,44,31,30,16,13,0,14,-14,22,28,25,15,9,0,151,141,147,85,264,264,796,799,845,887,862,773,840,817,1016,1008,987,881,1061,1034,942,942,942,857,778,690,689,676,466,223,758,660,535,513,771,745,653,708,689,672,971,924,7544,7746,7093,7171,9647,7647,9647,6490,5173,2827,1986,1812,6422,5609,29966,29966,29970,29971,29968,29964,29967,29971,12837,2805,29973,29970,29978,29978,29980,29981,29981,29982,29982,29983,29982,29982,29985,29979,29979,29980,29981,29980,29980,29981,29977,29978,29982,29983,29983,29984,29984,29985,29985,29985]} 1. d4 {[%emt 0:00:02]} Nf6 {[%emt 0:00:02]} 2. c4 e6 {[%emt 0:03:04]} 3. Nf3 {[%emt 0:00:02]} d5 {[%emt 0:00:00]} 4. g3 {[%emt 0:00:01]} Bb4+ {[%emt 0:00:00]} 5. Bd2 {[%emt 0:00:01]} a5 {[%emt 0:00:00]} 6. Qc2 {[%emt 0:00:03]} O-O {[%emt 0:00:00]} 7. Bg2 {[%emt 0:00:01]} Be7 {[%emt 0:00:00] E11: Bogo-Indian.} 8. O-O {[%emt 0:00:03]} c6 {[%emt 0:00:00]} 9. b3 {[%emt 0:00:03]} b6 {[%emt 0:00:00] The position is equal.} 10. Bf4 {[%emt 0:00:04]} Bb7 {[%emt 0:00:00]} 11. Nc3 {[%emt 0:00:03]} Na6 {[%emt 0:00:00] [#]} 12. e4 $5 $146 {[%emt 0:00:02][%mdl 8] New and interesting.} ({Predecessor:} 12. Rfd1 Rc8 13. Qb2 h6 14. Rac1 Bb4 15. a3 Be7 16. Ne5 Nd7 17. cxd5 cxd5 18. Nb5 Nxe5 19. dxe5 Rxc1 20. Rxc1 {0-1 (68) Cheparinov,I (2678)-Sargissian,G (2671) Khanty-Mansiysk 2013}) 12... a4 {[%emt 0:00:00]} 13. Ne5 {[%emt 0:00:25]} Nb4 {[%emt 0:00:00]} 14. Qe2 {[%emt 0:00:06]} axb3 {[%emt 0:00:00]} 15. axb3 {[%emt 0:00:04]} Rxa1 {[%emt 0:00:00]} 16. Rxa1 {[%emt 0:00:01]} dxc4 $1 {[%emt 0:00:00]} 17. Ra7 {[%emt 0:00:19]} (17. Qxc4 b5 18. Qe2 Qxd4 $17) 17... Ba6 {[%emt 0:00:00]} 18. Rxa6 {[%emt 0:00:38][%mdl 64] Hoping for Ra7. Deflection} Nxa6 {[%emt 0:00:00]} (18... Qxd4 $11 19. Nxc6 Nxc6 20. Qxc4 Rc8) 19. Nxc6 $16 {[%emt 0:00:01]} Qd7 {[%emt 0:00:14] [#]} 20. Qxc4 {[%emt 0:00:01] White is more active.} (20. e5 $142 $1 Nd5 21. Nxd5 (21. Qxc4 Nxf4 22. gxf4 Nb8 $15) 21... exd5 {[#]} 22. Bxd5 $1) 20... b5 $2 {[%emt 0:00:07] This move loses the game for Black.} (20... Nb4 $16 21. d5 (21. Nxb4 Rc8 $15) 21... Nxc6 22. dxc6 Qa7) 21. Nxb5 $18 {[%emt 0:00:02]} ({Don't do} 21. Qxb5 $6 Nb4 $16) 21... Kh8 $2 {[%emt 0:00:08]} (21... Re8 22. Nba7 Qb7 23. Nxe7+ Rxe7) 22. Nxe7 {[%emt 0:00:02]} Qxe7 {[%emt 0:00:06]} 23. Bd6 {[%emt 0:01:44]} Qd8 {[%emt 0:00:01]} 24. Bxf8 {[%emt 0:00:02]} Qxf8 25. e5 {[%emt 0:00:00]} Nd7 {[%emt 0:00:10]} 26. Nd6 {[%emt 0:00:00]} Nab8 {[%emt 0:00:02]} 27. Qc7 {[%emt 0:00:00]} g5 {[%emt 0:00:00]} 28. Bc6 {[%emt 0:00:00]} Nxc6 {[%emt 0:00:00]} 29. Qxc6 {[%emt 0:00:00][%mdl 4096] Endgame KQN-KQN} Qe7 {[%emt 0:00:03]} 30. Qc8+ {[%emt 0:00:00]} Kg7 {[%emt 0:00:01]} 31. Qe8 {[%emt 0:00:00]} Qxe8 {[%emt 0:00:01]} 32. Nxe8+ {[%emt 0:00:00] KN-KN} Kg6 {[%emt 0:00:03]} 33. g4 {[%emt 0:00:00]} (33. b4 $142) 33... Nb6 $2 {[%emt 0:00:00]} (33... Nb8 34. b4 Nc6) 34. b4 {[%emt 0:00:00]} f5 {[%emt 0:00:02]} 35. exf6 {[%emt 0:00:00]} Kf7 {[%emt 0:00:08]} (35... h6 $142 36. Kg2 Kf7) 36. Nd6+ {[%emt 0:00:00]} Kxf6 {[%emt 0:00:00]} 37. Ne4+ {[%emt 0:00:00]} Kg6 {[%emt 0:00:00]} 38. b5 {[%emt 0:00:00]} h5 {[%emt 0:00:00]} 39. f3 {[%emt 0:00:00][%cal Bf2f3,Bf3g4][%mdl 32]} hxg4 {[%emt 0:00:00]} 40. fxg4 {[%emt 0:00:00]} Nd5 {[%emt 0:00:00]} 41. Kf2 {[%emt 0:00:00]} Nb6 {[%emt 0:00:02]} 42. h3 {[%emt 0:00:00]} Kh6 {[%emt 0:00:02]} 43. Kf3 {[%emt 0:00:00]} Kg6 {[%emt 0:00:02]} 44. Nc3 {[%emt 0:00:00]} Kf6 {[%emt 0:00:03]} 45. Ke4 {[%emt 0:00:00]} Nc4 {[%emt 0:00:01]} 46. d5 {[%emt 0:00:00] White wants to mate with Kd4.} e5 {[%emt 0:00:07]} 47. Kd3 {[%emt 0:00:00]} Nb6 {[%emt 0:00:01]} 48. Ne4+ {[%emt 0:00:00]} Ke7 {[%emt 0:00:01]} 49. d6+ {[%emt 0:00:00]} Ke6 {[%emt 0:00:00]} 50. Nxg5+ {[%emt 0:00:00]} Kxd6 {[%emt 0:00:01]} 51. Ne4+ {[%emt 0:00:00]} (51. h4 $142 Ke7 52. h5) 51... Kd5 {[%emt 0:00:04]} 52. h4 {[%emt 0:00:00][%cal Bh3h4,Bh4h5][%mdl 32] White mates.} Ke6 {[%emt 0:00:05]} 53. h5 {[%emt 0:00:00]} Nd5 {[%emt 0:00:03]} 54. Kc4 {[%emt 0:00:00]} Ne3+ {[%emt 0:00:02]} 55. Kc5 {[%emt 0:00:00]} Nxg4 {[%emt 0:00:00]} 56. b6 {[%emt 0:00:00]} Kd7 {[%emt 0:00:02]} 57. Kd5 {[%emt 0:00:00]} Nh6 {[%emt 0:00:04]} 58. Kxe5 {[%emt 0:00:00]} Kc6 {[%emt 0:00:06]} 59. Kf6 {[%emt 0:00:00]} Kxb6 {[%emt 0:00:00]} 60. Kg5 {[%emt 0:00:00]} Nf7+ {[%emt 0:00:00]} 61. Kg6 {[%emt 0:00:00]} Ne5+ {[%emt 0:00:01]} 62. Kg7 {[%emt 0:00:02]} Ng4 {[%emt 0:00:03]} 63. Nf6 {[%emt 0:00:03]} Ne3 {[%emt 0:00:01]} 64. Kg6 {[%emt 0:00:02]} Nc4 {[%emt 0:00:02]} 65. h6 {[%emt 0:00:02]} Ne5+ {[%emt 0:00:02]} 66. Kg7 {[%emt 0:00:01] Weighted Error Value: White=0.11 (very precise) /Black=0.37} 1-0

[Event "BRA vs ARG Blitz 2022"]
[Site "Catas Altas"]
[Date "2022.07.09"]
[Round "4.2"]
[White "Diamant, Andre"]
[Black "Languidey, Simon Alejandro"]
[Result "1-0"]
[ECO "C06"]
[WhiteElo "2538"]
[BlackElo "2424"]
[Annotator "TA"]
[PlyCount "45"]
[EventDate "2022.06.29"]
[EventType "schev"]
[EventCountry "BRA"]
[SourceTitle "playchess.com"]
[Source "ChessBase"]
[SourceQuality "1"]
[WhiteTeam "Brazil"]
[BlackTeam "Argentina"]
[WhiteTeamCountry "BRA"]
[BlackTeamCountry "ARG"]
[TimeControl "180+2"]

{[%evp 17,45,12,7,11,53,19,16,7,27,17,97,90,93,87,305,270,507,547,929,922,897,877,29987,29988,29988,29989,29990,29991,29997,29998]} 1. e4 {[%emt 0:00:02]} e6 {[%emt 0:00:05]} 2. d4 {[%emt 0:00:03]} d5 {[%emt 0:00:01]} 3. Nd2 {[%emt 0:00:01]} Nf6 {[%emt 0:00:02]} 4. e5 {[%emt 0:00:01]} Nfd7 {[%emt 0:00:01]} 5. Ngf3 {[%emt 0:00:01]} c5 {[%emt 0:00:03]} 6. c3 {[%emt 0:00:01]} Nc6 {[%emt 0:00:03]} 7. Bd3 {[%emt 0:00:01]} Be7 {[%emt 0:00:08]} 8. O-O {[%emt 0:00:02]} g5 {[%emt 0:00:13]} 9. dxc5 {[%emt 0:00:04]} g4 {[%emt 0:00:09]} 10. Nd4 {[%emt 0:00:02] Threatening Bb5. C06: French Tarrasch: 3...Nf6 4 e5 Nfd7 5 Bd3 main lines.} Ncxe5 {[%emt 0:00:03]} 11. Bb5 {[%emt 0:00:07] And now f4 would win.} a6 {[%emt 0:00:19]} 12. Bxd7+ {[%emt 0:00:11] The position is equal.} Bxd7 {[%emt 0:00:04]} 13. b4 {[%emt 0:00:03]} Qc7 {[%emt 0:00:07]} (13... a5 $11) 14. f4 $16 {[%emt 0:00:10]} gxf3 {[%emt 0:00:04]} 15. N2xf3 {[%emt 0:00:01] [#] aiming for Bf4.} Nc4 $146 {[%emt 0:00:28] [#] Loses the game.} (15... Ng6 $16 {was necessary.}) ({Predecessor:} 15... Ng6 16. Bg5 f6 17. Bh6 O-O-O 18. a4 Rhg8 19. Qe2 e5 20. c6 Bg4 21. cxb7+ Qxb7 {0-1 (37) Winsnes,R (2378)-Walinder,L (2258) Sweden 2018}) 16. Ng5 $1 $18 {[%emt 0:00:09]} Bxg5 {[%emt 0:00:26]} (16... O-O-O 17. Nxf7 (17. Rxf7 Rde8 $16) 17... Rhf8 18. Nxd8 Qxd8 19. Rxf8 Qxf8) 17. Bxg5 {[%emt 0:00:01] Qh5 is the strong threat.} h5 {[%emt 0:00:42]} 18. Qf3 {[%emt 0:00:16][%csl Gf1][%cal Rf3f7]} f5 {[%emt 0:00:24]} 19. Rae1 {[%emt 0:00:19][%csl LRd5,LRe6,LRf5][%cal Rf3f5] White wants to mate with Qxf5.} Kf7 {[%emt 0:00:11] [#]} 20. Nxf5 $1 {[%emt 0:00:14][%mdl 512] White mates.} exf5 {[%emt 0:00:03]} 21. Qxd5+ {[%emt 0:00:33]} Kg6 {[%emt 0:00:02]} 22. Re6+ {[%emt 0:00:25]} Kxg5 {[%emt 0:00:05]} 23. Qxf5+ {[%emt 0:00:05] Weighted Error Value: White=0.03 (flawless) /Black=0.98} 1-0